[Event "Early-Titled-Tuesday-Blitz-June-18-2024"]
[Site "Chess.com"]
[Date "2024.06.18"]
[Round "6"]
[White "NovoselovRoman"]
[Black "ellatambien"]
[Result "0-1"]
[WhiteElo "2547"]
[BlackElo "2689"]
[TimeControl "180+1"]
[EndTime "9:10:59 PDT"]
[Termination "ellatambien won by checkmate"]

1. e4 {[%clk 0:02:59.3]} 1... e5 {[%clk 0:02:58.9]} 2. Nf3 {[%clk 0:02:57.3]}
2... Nc6 {[%clk 0:02:59.4]} 3. Bc4 {[%clk 0:02:57.2]} 3... Nf6 {[%clk
0:02:59.1]} 4. d3 {[%clk 0:02:57.7]} 4... Bc5 {[%clk 0:02:58.3]} 5. c3 {[%clk
0:02:58]} 5... O-O {[%clk 0:02:58]} 6. Bb3 {[%clk 0:02:54.1]} 6... a5 {[%clk
0:02:50.4]} 7. Nbd2 {[%clk 0:02:52.8]} 7... h6 {[%clk 0:02:41.3]} 8. h3 {[%clk
0:02:52.6]} 8... Re8 {[%clk 0:02:37.1]} 9. g4 {[%clk 0:02:50.4]} 9... d5 {[%clk
0:02:32.7]} 10. Qe2 {[%clk 0:02:50.4]} 10... a4 {[%clk 0:02:26]} 11. Bc2 {[%clk
0:02:48.6]} 11... d4 {[%clk 0:02:17.7]} 12. a3 {[%clk 0:02:45.1]} 12... Nd7
{[%clk 0:02:15.1]} 13. Nf1 {[%clk 0:02:39.9]} 13... Bf8 {[%clk 0:02:13.7]} 14.
Ng3 {[%clk 0:02:35]} 14... Nc5 {[%clk 0:02:13.8]} 15. Nf5 {[%clk 0:02:01.4]}
15... Be6 {[%clk 0:02:10.7]} 16. cxd4 {[%clk 0:01:50.8]} 16... exd4 {[%clk
0:02:01]} 17. Bf4 {[%clk 0:01:42.6]} 17... Qd7 {[%clk 0:01:56.9]} 18. Ng3 {[%clk
0:01:15]} 18... b5 {[%clk 0:01:54.4]} 19. g5 {[%clk 0:01:11.8]} 19... b4 {[%clk
0:01:36.9]} 20. gxh6 {[%clk 0:01:09.2]} 20... g6 {[%clk 0:01:36.9]} 21. h7+
{[%clk 0:00:57.1]} 21... Kh8 {[%clk 0:01:34.3]} 22. Ne5 {[%clk 0:00:57.2]} 22...
Nxe5 {[%clk 0:01:32.7]} 23. Bxe5+ {[%clk 0:00:58.1]} 23... Bg7 {[%clk
0:01:32.7]} 24. Bxg7+ {[%clk 0:00:56.4]} 24... Kxg7 {[%clk 0:01:33.6]} 25. axb4
{[%clk 0:00:56.8]} 25... Nb3 {[%clk 0:01:25.8]} 26. Bxb3 {[%clk 0:00:53]} 26...
axb3 {[%clk 0:01:26.7]} 27. O-O {[%clk 0:00:49.1]} 27... Bxh3 {[%clk 0:01:23.6]}
28. Rfc1 {[%clk 0:00:48.3]} 28... Rxa1 {[%clk 0:01:22.4]} 29. Rxa1 {[%clk
0:00:49.2]} 29... Kxh7 {[%clk 0:01:16.9]} 30. Qf3 {[%clk 0:00:35.7]} 30... Kg7
{[%clk 0:01:12.2]} 31. Ra7 {[%clk 0:00:31.6]} 31... Bg4 {[%clk 0:01:11.1]} 32.
Qf4 {[%clk 0:00:30.1]} 32... Re7 {[%clk 0:01:02.6]} 33. e5 {[%clk 0:00:27.2]}
33... Bf5 {[%clk 0:00:58.1]} 34. b5 {[%clk 0:00:16.7]} 34... Qe6 {[%clk
0:00:52]} 35. Qxd4 {[%clk 0:00:14.8]} 35... Qxe5 {[%clk 0:00:50.8]} 36. Qxe5+
{[%clk 0:00:13.8]} 36... Rxe5 {[%clk 0:00:51.5]} 37. Rxc7 {[%clk 0:00:13.1]}
37... Rxb5 {[%clk 0:00:49.4]} 38. Rc3 {[%clk 0:00:13.7]} 38... Be6 {[%clk
0:00:48.6]} 39. Ne2 {[%clk 0:00:13.4]} 39... Rb4 {[%clk 0:00:41.2]} 40. Kf1
{[%clk 0:00:10.1]} 40... Ra4 {[%clk 0:00:36.6]} 41. Nc1 {[%clk 0:00:09.1]} 41...
Rb4 {[%clk 0:00:25.8]} 42. Ke2 {[%clk 0:00:09]} 42... Kf6 {[%clk 0:00:26.4]} 43.
Ke3 {[%clk 0:00:09.2]} 43... Ke5 {[%clk 0:00:25.5]} 44. Ne2 {[%clk 0:00:07.8]}
44... g5 {[%clk 0:00:22.4]} 45. d4+ {[%clk 0:00:08]} 45... Kd6 {[%clk
0:00:22.6]} 46. Nc1 {[%clk 0:00:07.6]} 46... f5 {[%clk 0:00:21.7]} 47. Nd3
{[%clk 0:00:07.9]} 47... f4+ {[%clk 0:00:21.3]} 48. Ke4 {[%clk 0:00:04.7]} 48...
Bd5+ {[%clk 0:00:19.2]} 49. Kf5 {[%clk 0:00:04.6]} 49... Rxd4 {[%clk 0:00:19.4]}
50. Kxg5 {[%clk 0:00:05.1]} 50... f3 {[%clk 0:00:18.8]} 51. Nf4 {[%clk
0:00:03.9]} 51... Bc4 {[%clk 0:00:15.1]} 52. Rxf3 {[%clk 0:00:02.1]} 52... Rd2
{[%clk 0:00:14.9]} 53. Kf5 {[%clk 0:00:01]} 53... Rxb2 {[%clk 0:00:13.1]} 54.
Ke4 {[%clk 0:00:01.2]} 54... Rd2 {[%clk 0:00:11.1]} 55. Ng6 {[%clk 0:00:01.3]}
55... b2 {[%clk 0:00:07.9]} 56. Rf6+ {[%clk 0:00:02]} 56... Kc5 {[%clk
0:00:08.1]} 57. Ne5 {[%clk 0:00:01.7]} 57... b1=Q+ {[%clk 0:00:07.4]} 58. Ke3
{[%clk 0:00:02.3]} 58... Qe1+ {[%clk 0:00:06.1]} 59. Kf4 {[%clk 0:00:02.7]}
59... Rxf2+ {[%clk 0:00:06.6]} 60. Kg5 {[%clk 0:00:03]} 60... Rxf6 {[%clk
0:00:07.2]} 61. Nd7+ {[%clk 0:00:03.3]} 61... Kd4 {[%clk 0:00:06.8]} 62. Nxf6
{[%clk 0:00:04.2]} 62... Qg3+ {[%clk 0:00:07.1]} 63. Kh6 {[%clk 0:00:03.9]}
63... Be2 {[%clk 0:00:07.7]} 64. Kh7 {[%clk 0:00:03.9]} 64... Qg5 {[%clk
0:00:07.5]} 65. Ng8 {[%clk 0:00:03.4]} 65... Bd3+ {[%clk 0:00:08.4]} 66. Kh8
{[%clk 0:00:03.6]} 66... Qh5+ {[%clk 0:00:08.6]} 67. Kg7 {[%clk 0:00:03.9]}
67... Qh7+ {[%clk 0:00:09.1]} 68. Kf8 {[%clk 0:00:04.5]} 68... Bc4 {[%clk
0:00:08.6]} 69. Nh6 {[%clk 0:00:03.7]} 69... Qxh6+ {[%clk 0:00:08.3]} 70. Ke7
{[%clk 0:00:04.1]} 70... Qf4 {[%clk 0:00:09.2]} 71. Kd7 {[%clk 0:00:04.1]} 71...
Qf5+ {[%clk 0:00:08.8]} 72. Kd6 {[%clk 0:00:04.4]} 72... Qd5+ {[%clk 0:00:08.5]}
73. Kc7 {[%clk 0:00:04.7]} 73... Qe6 {[%clk 0:00:08.2]} 74. Kb7 {[%clk
0:00:04.9]} 74... Kc5 {[%clk 0:00:08.6]} 75. Kc7 {[%clk 0:00:05.3]} 75... Qf7+
{[%clk 0:00:08.6]} 76. Kd8 {[%clk 0:00:06.2]} 76... Kc6 {[%clk 0:00:08.6]} 77.
Kc8 {[%clk 0:00:07.1]} 77... Qe8# {[%clk 0:00:09.1]} 0-1

[Event "Early-Titled-Tuesday-Blitz-June-18-2024"]
[Site "Chess.com"]
[Date "2024.06.18"]
[Round "6"]
[White "InadaC"]
[Black "InitiatingASC"]
[Result "0-1"]
[WhiteElo "2232"]
[BlackElo "2432"]
[TimeControl "180+1"]
[EndTime "9:11:00 PDT"]
[Termination "InitiatingASC won by resignation"]

1. Nf3 {[%clk 0:03:00.9]} 1... d5 {[%clk 0:02:54.6]} 2. b3 {[%clk 0:03:00.3]}
2... Nc6 {[%clk 0:02:51.6]} 3. Bb2 {[%clk 0:02:59.1]} 3... Bg4 {[%clk
0:02:51.5]} 4. d4 {[%clk 0:02:58.2]} 4... Bxf3 {[%clk 0:02:50.3]} 5. exf3 {[%clk
0:02:57.6]} 5... Qd7 {[%clk 0:02:46.5]} 6. Bb5 {[%clk 0:02:57.7]} 6... a6 {[%clk
0:02:46.6]} 7. Bd3 {[%clk 0:02:56.8]} 7... O-O-O {[%clk 0:02:46.2]} 8. O-O
{[%clk 0:02:57.3]} 8... h5 {[%clk 0:02:44.2]} 9. Nd2 {[%clk 0:02:56]} 9... h4
{[%clk 0:02:44.7]} 10. h3 {[%clk 0:02:54.8]} 10... Nh6 {[%clk 0:02:42.4]} 11. a4
{[%clk 0:02:50.4]} 11... g5 {[%clk 0:02:37.7]} 12. c4 {[%clk 0:02:45.3]} 12...
Bg7 {[%clk 0:02:26.6]} 13. cxd5 {[%clk 0:02:43.8]} 13... Qxd5 {[%clk 0:02:25.5]}
14. Be4 {[%clk 0:02:44.1]} 14... Qd7 {[%clk 0:02:14.4]} 15. Nc4 {[%clk
0:02:34.1]} 15... Nxd4 {[%clk 0:02:08.9]} 16. Re1 {[%clk 0:02:20.3]} 16... f5
{[%clk 0:01:58.7]} 17. Bb1 {[%clk 0:02:05.3]} 17... g4 {[%clk 0:01:54.8]} 18.
fxg4 {[%clk 0:02:03.5]} 18... fxg4 {[%clk 0:01:55]} 19. hxg4 {[%clk 0:02:03]}
19... Nxg4 {[%clk 0:01:47.7]} 20. Be4 {[%clk 0:01:57.4]} 20... h3 {[%clk
0:01:40.9]} 21. g3 {[%clk 0:01:49.4]} 21... h2+ {[%clk 0:01:39.5]} 22. Kg2
{[%clk 0:01:47.5]} 22... Nxf2 {[%clk 0:01:18.9]} 23. Kxf2 {[%clk 0:01:31.6]}
23... Rdf8+ {[%clk 0:01:17.1]} 24. Kg2 {[%clk 0:01:26.4]} 24... Qh3+ {[%clk
0:01:03.7]} 25. Kh1 {[%clk 0:01:24.4]} 25... Qxg3 {[%clk 0:00:48.4]} 26. Bxd4
{[%clk 0:01:15.7]} 26... Bxd4 {[%clk 0:00:45.7]} 27. Qxd4 {[%clk 0:01:11.1]}
27... Rfg8 {[%clk 0:00:43.9]} 28. Bxb7+ {[%clk 0:00:45.5]} 28... Kb8 {[%clk
0:00:38.3]} 29. Qxh8 {[%clk 0:00:28]} 29... Rxh8 {[%clk 0:00:36.2]} 30. Bg2
{[%clk 0:00:28.5]} 30... Rg8 {[%clk 0:00:35.5]} 31. Re2 {[%clk 0:00:28.2]} 31...
Qxb3 {[%clk 0:00:30]} 32. Nd2 {[%clk 0:00:24.6]} 32... Qd3 {[%clk 0:00:23.8]}
33. Rb1+ {[%clk 0:00:23.6]} 33... Kc8 {[%clk 0:00:23.3]} 34. Rbe1 {[%clk
0:00:17.9]} 34... e5 {[%clk 0:00:20.4]} 35. Nf3 {[%clk 0:00:15.7]} 35... Qh7
{[%clk 0:00:11.1]} 36. Nxe5 {[%clk 0:00:14.7]} 36... Rh8 {[%clk 0:00:06.1]} 37.
Rb2 {[%clk 0:00:13]} 37... Qh4 {[%clk 0:00:02.3]} 38. Rbe2 {[%clk 0:00:12.3]}
38... Qxa4 {[%clk 0:00:01.8]} 39. Nf3 {[%clk 0:00:11.8]} 39... Qb5 {[%clk
0:00:01.2]} 40. Nxh2 {[%clk 0:00:11.3]} 40... Qc5 {[%clk 0:00:01.3]} 41. Re5
{[%clk 0:00:09.2]} 41... Qd6 {[%clk 0:00:01.4]} 42. Re8+ {[%clk 0:00:08.9]}
42... Rxe8 {[%clk 0:00:01.7]} 43. Rxe8+ {[%clk 0:00:09.4]} 43... Kd7 {[%clk
0:00:02.6]} 44. Re1 {[%clk 0:00:09]} 44... a5 {[%clk 0:00:02.5]} 45. Nf3 {[%clk
0:00:09.5]} 45... a4 {[%clk 0:00:02.4]} 46. Re2 {[%clk 0:00:09.8]} 46... Qb4
{[%clk 0:00:02.8]} 47. Rd2+ {[%clk 0:00:10.2]} 47... Ke8 {[%clk 0:00:03.2]} 48.
Re2+ {[%clk 0:00:10]} 48... Kf8 {[%clk 0:00:03.4]} 49. Bh3 {[%clk 0:00:10.6]}
49... Qb1+ {[%clk 0:00:02.1]} 50. Kg2 {[%clk 0:00:10.5]} 50... Qd3 {[%clk
0:00:02.5]} 51. Rf2 {[%clk 0:00:11]} 51... Kg8 {[%clk 0:00:03.2]} 52. Ne5 {[%clk
0:00:11.4]} 52... Qd5+ {[%clk 0:00:03.3]} 53. Nf3 {[%clk 0:00:11.1]} 53... a3
{[%clk 0:00:04]} 54. Kh2 {[%clk 0:00:10.3]} 54... a2 {[%clk 0:00:04.6]} 55. Rg2+
{[%clk 0:00:10.8]} 55... Kh8 {[%clk 0:00:04.7]} 56. Ng5 {[%clk 0:00:11.1]} 56...
a1=Q {[%clk 0:00:04]} 57. Be6 {[%clk 0:00:11.7]} 57... Qxg5 {[%clk 0:00:03.9]}
58. Rxg5 {[%clk 0:00:11.1]} 58... Qb2+ {[%clk 0:00:04.2]} 59. Kh3 {[%clk
0:00:11.1]} 59... Qf6 {[%clk 0:00:04.6]} 60. Rh5+ {[%clk 0:00:09.8]} 60... Kg7
{[%clk 0:00:05.2]} 61. Bg4 {[%clk 0:00:09.9]} 61... Qc3+ {[%clk 0:00:05]} 62.
Kh4 {[%clk 0:00:10.3]} 62... c5 {[%clk 0:00:05.6]} 63. Rf5 {[%clk 0:00:10.7]}
63... Qe1+ {[%clk 0:00:05.1]} 64. Kh3 {[%clk 0:00:09.7]} 64... c4 {[%clk
0:00:05.2]} 65. Rg5+ {[%clk 0:00:10]} 65... Kf6 {[%clk 0:00:04.8]} 66. Rf5+
{[%clk 0:00:08.9]} 66... Ke7 {[%clk 0:00:05.4]} 67. Rh5 {[%clk 0:00:07.7]} 67...
c3 {[%clk 0:00:05.9]} 68. Rh7+ {[%clk 0:00:07.6]} 68... Kd6 {[%clk 0:00:06.6]}
69. Rd7+ {[%clk 0:00:07.7]} 69... Kc5 {[%clk 0:00:07.3]} 70. Rc7+ {[%clk
0:00:08.1]} 70... Kb4 {[%clk 0:00:07.8]} 71. Rb7+ {[%clk 0:00:08.3]} 71... Ka3
{[%clk 0:00:08.5]} 72. Ra7+ {[%clk 0:00:08.1]} 72... Kb2 {[%clk 0:00:09.1]} 73.
Rb7+ {[%clk 0:00:08.6]} 73... Kc1 {[%clk 0:00:09.8]} 74. Bf5 {[%clk 0:00:07.8]}
74... Qe3+ {[%clk 0:00:09.5]} 75. Kg4 {[%clk 0:00:07.7]} 75... Qg1+ {[%clk
0:00:08.8]} 76. Kf4 {[%clk 0:00:07.6]} 76... Qf2+ {[%clk 0:00:09]} 77. Ke5
{[%clk 0:00:08]} 77... Qf3 {[%clk 0:00:08.8]} 78. Be4 {[%clk 0:00:08.5]} 78...
Qg3+ {[%clk 0:00:08.8]} 79. Kd5 {[%clk 0:00:08.5]} 79... Kd2 {[%clk 0:00:09.2]}
80. Rb4 {[%clk 0:00:08.8]} 80... c2 {[%clk 0:00:09.3]} 81. Rd4+ {[%clk
0:00:08.8]} 81... Kc1 {[%clk 0:00:09.2]} 82. Rc4 {[%clk 0:00:09]} 82... Qg5+
{[%clk 0:00:09.4]} 83. Kd4 {[%clk 0:00:08.6]} 83... Qf6+ {[%clk 0:00:09.7]} 84.
Kd3 {[%clk 0:00:08.7]} 84... Qd6+ {[%clk 0:00:09.1]} 85. Ke3 {[%clk 0:00:09]}
85... Qd2+ {[%clk 0:00:09]} 86. Kf3 {[%clk 0:00:08.8]} 86... Qd1+ {[%clk
0:00:08.8]} 87. Kf4 {[%clk 0:00:08.1]} 87... Qf1+ {[%clk 0:00:09.1]} 88. Ke5
{[%clk 0:00:08]} 88... Qxc4 {[%clk 0:00:09.8]} 89. Kf4 {[%clk 0:00:07.3]} 89...
Qxe4+ {[%clk 0:00:09.6]} 90. Kxe4 {[%clk 0:00:07.6]} 90... Kd2 {[%clk
0:00:10.5]} 91. Kf3 {[%clk 0:00:07.8]} 91... c1=Q {[%clk 0:00:11.2]} 0-1

[Event "Early-Titled-Tuesday-Blitz-June-18-2024"]
[Site "Chess.com"]
[Date "2024.06.18"]
[Round "6"]
[White "KNVB"]
[Black "ChristopherYoo"]
[Result "1-0"]
[WhiteElo "2826"]
[BlackElo "3011"]
[TimeControl "180+1"]
[EndTime "9:11:11 PDT"]
[Termination "KNVB won on time"]

1. d4 {[%clk 0:03:00.9]} 1... d5 {[%clk 0:02:58.3]} 2. Bf4 {[%clk 0:03:00]} 2...
Nf6 {[%clk 0:02:50.1]} 3. e3 {[%clk 0:03:00.2]} 3... c5 {[%clk 0:02:43.3]} 4. c3
{[%clk 0:02:59.7]} 4... Qb6 {[%clk 0:02:41.9]} 5. Qb3 {[%clk 0:02:59.1]} 5... c4
{[%clk 0:02:42]} 6. Qxb6 {[%clk 0:02:58.8]} 6... axb6 {[%clk 0:02:42]} 7. Bxb8
{[%clk 0:02:58.7]} 7... Rxb8 {[%clk 0:02:41.6]} 8. Nd2 {[%clk 0:02:58.5]} 8...
e6 {[%clk 0:02:37.6]} 9. a3 {[%clk 0:02:58.4]} 9... b5 {[%clk 0:02:34.8]} 10.
Be2 {[%clk 0:02:51.5]} 10... Nd7 {[%clk 0:02:33]} 11. Bd1 {[%clk 0:02:22]} 11...
Nb6 {[%clk 0:02:30]} 12. Bc2 {[%clk 0:02:22.2]} 12... Bd6 {[%clk 0:02:27]} 13.
e4 {[%clk 0:02:11.3]} 13... f6 {[%clk 0:02:25.8]} 14. Ne2 {[%clk 0:01:56.7]}
14... Bd7 {[%clk 0:02:17]} 15. f4 {[%clk 0:01:44.8]} 15... dxe4 {[%clk
0:02:14.5]} 16. Nxe4 {[%clk 0:01:15.1]} 16... Ke7 {[%clk 0:02:10.2]} 17. Nxd6
{[%clk 0:00:48.1]} 17... Kxd6 {[%clk 0:02:10.1]} 18. O-O {[%clk 0:00:38.9]}
18... f5 {[%clk 0:02:03.6]} 19. Kf2 {[%clk 0:00:21.7]} 19... Nd5 {[%clk
0:01:59.9]} 20. g3 {[%clk 0:00:17.4]} 20... h6 {[%clk 0:01:47.8]} 21. h4 {[%clk
0:00:06.3]} 21... g5 {[%clk 0:01:41.8]} 22. Rh1 {[%clk 0:00:03.8]} 22... Nf6
{[%clk 0:01:28.5]} 23. Rag1 {[%clk 0:00:01]} 23... Ng4+ {[%clk 0:00:58.4]} 24.
Ke1 {[%clk 0:00:01]} 24... Bc6 {[%clk 0:00:54.3]} 25. Rh3 {[%clk 0:00:01.3]}
25... Ne3 {[%clk 0:00:52.6]} 26. Kd2 {[%clk 0:00:01.3]} 26... g4 {[%clk
0:00:47.1]} 27. Rh2 {[%clk 0:00:01.4]} 27... Nd5 {[%clk 0:00:47.2]} 28. Rf2
{[%clk 0:00:01.4]} 28... Nf6 {[%clk 0:00:47.3]} 29. Re1 {[%clk 0:00:01.5]} 29...
Be4 {[%clk 0:00:46.7]} 30. Bd1 {[%clk 0:00:01.4]} 30... Bd3 {[%clk 0:00:45.9]}
31. Nc1 {[%clk 0:00:01.7]} 31... Ne4+ {[%clk 0:00:46]} 32. Rxe4 {[%clk
0:00:02.2]} 32... Bxe4 {[%clk 0:00:46.9]} 33. Bc2 {[%clk 0:00:02.2]} 33... Bf3
{[%clk 0:00:39.6]} 34. Na2 {[%clk 0:00:01.9]} 34... Ke7 {[%clk 0:00:28.3]} 35.
Ke3 {[%clk 0:00:02]} 35... Rhd8 {[%clk 0:00:26.1]} 36. Rf1 {[%clk 0:00:02.1]}
36... Kf6 {[%clk 0:00:25.6]} 37. Re1 {[%clk 0:00:02.5]} 37... Bd5 {[%clk
0:00:17.5]} 38. Nb4 {[%clk 0:00:02.8]} 38... Rd6 {[%clk 0:00:17.2]} 39. Kf2
{[%clk 0:00:03.2]} 39... Rbd8 {[%clk 0:00:17.3]} 40. Re5 {[%clk 0:00:03.5]}
40... h5 {[%clk 0:00:17.1]} 41. Ke3 {[%clk 0:00:03.9]} 41... R6d7 {[%clk
0:00:16.4]} 42. Ke2 {[%clk 0:00:03.8]} 42... Kf7 {[%clk 0:00:11.2]} 43. Ke1
{[%clk 0:00:04]} 43... Rd6 {[%clk 0:00:09.8]} 44. Kf2 {[%clk 0:00:04.3]} 44...
Bc6 {[%clk 0:00:08.5]} 45. Ke1 {[%clk 0:00:04.1]} 45... Be8 {[%clk 0:00:08.6]}
46. Kf2 {[%clk 0:00:04.1]} 46... Kf6 {[%clk 0:00:08.4]} 47. Ke1 {[%clk
0:00:04.3]} 47... b6 {[%clk 0:00:08.4]} 48. Ke2 {[%clk 0:00:04.6]} 48... Bd7
{[%clk 0:00:05.8]} 49. Kf2 {[%clk 0:00:04.6]} 49... Bc6 {[%clk 0:00:03.9]} 50.
Nxc6 {[%clk 0:00:03.2]} 50... Rxc6 {[%clk 0:00:04.2]} 51. Rxb5 {[%clk 0:00:04]}
51... Rd5 {[%clk 0:00:04.7]} 52. Rb4 {[%clk 0:00:02.4]} 52... b5 {[%clk
0:00:04.6]} 53. Ke3 {[%clk 0:00:02.6]} 53... Ra6 {[%clk 0:00:02.9]} 54. Bd1
{[%clk 0:00:02.8]} 54... Ra5 {[%clk 0:00:03]} 55. Kf2 {[%clk 0:00:03.1]} 55...
Ke7 {[%clk 0:00:03.2]} 56. Bc2 {[%clk 0:00:03.6]} 56... Kd7 {[%clk 0:00:03.5]}
57. Ke1 {[%clk 0:00:04.3]} 57... Kc7 {[%clk 0:00:04.1]} 58. Kd2 {[%clk 0:00:05]}
58... Rd8 {[%clk 0:00:04.1]} 59. Kc1 {[%clk 0:00:05.4]} 59... Rb8 {[%clk
0:00:03.7]} 60. Kb1 {[%clk 0:00:05.5]} 60... Rb6 {[%clk 0:00:04.3]} 61. Kc1
{[%clk 0:00:05.5]} 61... Ra8 {[%clk 0:00:03.4]} 62. Bd1 {[%clk 0:00:05.7]} 62...
Ra7 {[%clk 0:00:03.3]} 63. Kd2 {[%clk 0:00:06]} 63... Kc6 {[%clk 0:00:02.7]} 64.
Ke3 {[%clk 0:00:06.3]} 64... Rbb7 {[%clk 0:00:02.6]} 65. Kf2 {[%clk 0:00:05.7]}
65... Kc7 {[%clk 0:00:02.5]} 66. Ke1 {[%clk 0:00:05.9]} 66... Ra8 {[%clk
0:00:02.6]} 67. Ke2 {[%clk 0:00:06.5]} 67... Ra5 {[%clk 0:00:02.9]} 68. Kd2
{[%clk 0:00:07]} 68... Kd6 {[%clk 0:00:03.3]} 69. Kc1 {[%clk 0:00:07.5]} 69...
Rb8 {[%clk 0:00:03.6]} 70. Bc2 {[%clk 0:00:07.5]} 70... Kc7 {[%clk 0:00:03.5]}
71. Kd2 {[%clk 0:00:07.6]} 71... Rd8 {[%clk 0:00:03.4]} 72. Ke3 {[%clk
0:00:07.8]} 72... Rd6 {[%clk 0:00:03.7]} 73. Kf2 {[%clk 0:00:08.3]} 73... Rb6
{[%clk 0:00:03.7]} 74. Ke2 {[%clk 0:00:08.7]} 74... Kd6 {[%clk 0:00:03.9]} 75.
Ke1 {[%clk 0:00:09]} 75... Ke7 {[%clk 0:00:04.3]} 76. Kf2 {[%clk 0:00:09.6]}
76... Kd8 {[%clk 0:00:04.8]} 77. Kf1 {[%clk 0:00:10.3]} 77... Rd6 {[%clk
0:00:05.3]} 78. Ke2 {[%clk 0:00:11.1]} 78... Rd7 {[%clk 0:00:05.4]} 79. Bd1
{[%clk 0:00:11.7]} 79... Rda7 {[%clk 0:00:05]} 80. Ke1 {[%clk 0:00:11.7]} 80...
Kc7 {[%clk 0:00:05.6]} 81. Bc2 {[%clk 0:00:12.1]} 81... Kd6 {[%clk 0:00:06]} 82.
Kd2 {[%clk 0:00:12.6]} 82... Rf7 {[%clk 0:00:04.9]} 83. Ke3 {[%clk 0:00:12.7]}
83... Rf8 {[%clk 0:00:04]} 84. Ke2 {[%clk 0:00:13]} 84... Ke7 {[%clk 0:00:03.2]}
85. Kd1 {[%clk 0:00:13.7]} 85... Kf6 {[%clk 0:00:03.6]} 86. Kc1 {[%clk
0:00:14.4]} 86... Rd8 {[%clk 0:00:03.5]} 87. Bd1 {[%clk 0:00:14.9]} 87... e5
{[%clk 0:00:01.8]} 88. dxe5+ {[%clk 0:00:15.4]} 88... Ke6 {[%clk 0:00:02.4]} 89.
Bc2 {[%clk 0:00:15.1]} 89... Rd5 {[%clk 0:00:02.5]} 90. b3 {[%clk 0:00:14.1]}
90... Rxa3 {[%clk 0:00:02.3]} 91. Kb2 {[%clk 0:00:14.1]} 91... Ra7 {[%clk
0:00:02.1]} 92. bxc4 {[%clk 0:00:14.6]} 92... bxc4 {[%clk 0:00:03]} 93. Rxc4
{[%clk 0:00:13]} 93... Rd2 {[%clk 0:00:03]} 94. Kc1 {[%clk 0:00:12.1]} 1-0